[Event "Texas Collegiate chT 2017"]
[Site "Brownsville"]
[Date "2017.10.22"]
[Round "3"]
[White "Ruiz Castillo, Joshua Daniel"]
[Black "Concha Munoz, Claudia"]
[Result "1-0"]
[ECO "C14"]
[WhiteElo "2379"]
[BlackElo "1862"]
[Annotator "NA"]
[PlyCount "75"]
[EventDate "2017.??.??"]
[EventType "team-tourn"]
[EventCountry "USA"]
[SourceTitle "playchess.com"]
[Source "ChessBase"]
[SourceQuality "1"]
[TimeControl "5400+30"]

1. e4 {[%emt 0:00:00]} e6 {[%emt 0:00:38]} 2. d4 {[%emt 0:00:00]} d5 {[%emt 0:00:02]} 3. Nc3 {[%emt 0:00:00]} Nf6 {[%emt 0:00:10]} 4. Bg5 {[%emt 0:01:33]} Be7 {[%emt 0:00:59]} 5. e5 {[%emt 0:00:05]} Nfd7 {[%emt 0:00:23]} 6. Bxe7 {[%emt 0:00:07]} Qxe7 {[%emt 0:00:02]} 7. f4 {[%emt 0:00:10]} a6 {[%emt 0:02:04]} 8. Nf3 {[%emt 0:00:05]} c5 {[%emt 0:01:38]} 9. Bd3 {[%emt 0:00:14]} Nc6 {[%emt 0:06:01]} 10. O-O {[%emt 0:01:53]} Nxd4 {[%emt 0:10:39] C14: French: Classical System: 4 Bg5 Be7 main line} (10... b5 11. a3 g6 12. dxc5 Qxc5+ 13. Kh1 Bb7 14. Qe1 Rc8 15. Qh4 Qe7 16. Qh6 Qf8 17. Qh3 Nc5 18. Ng5 {0-1 (30) Bozanic,I (2234)-Muratovic,E (2277) Zadar 2013}) 11. Nxd4 {[%emt 0:00:28]} cxd4 {[%emt 0:00:03]} 12. Ne2 {[%emt 0:00:10]} Qc5 $146 {[%emt 0:05:54]} ({Predecessor:} 12... Qb4 13. c3 dxc3 14. bxc3 Qc5+ 15. Kh1 g6 16. Rc1 b6 17. Qe1 Bb7 18. Nd4 {0-1 (50) Rosenhain,R (1730)-Riedel,E (1758) Hannover 2015}) 13. Qe1 {[%emt 0:03:12]} f5 {[%emt 0:08:01]} 14. Qf2 {[%emt 0:19:34]} O-O {[%emt 0:04:41]} 15. Nxd4 {[%emt 0:02:09]} Nb8 {[%emt 0:01:03]} 16. Rfc1 {[%emt 0:02:13]} Nc6 {[%emt 0:14:12]} 17. Nxc6 {[%emt 0:01:15]} Qxf2+ {[%emt 0:01:16]} 18. Kxf2 {[%emt 0:00:01]} bxc6 {[%emt 0:00:01]} 19. c4 {[%emt 0:00:01]} Rb8 {[%emt 0:03:52]} 20. b3 {[%emt 0:00:16]} Rb4 {[%emt 0:02:54]} 21. Rab1 {[%emt 0:01:53]} Bd7 {[%emt 0:06:36]} 22. a3 {[%emt 0:00:19]} Rb6 {[%emt 0:00:58]} 23. b4 {[%emt 0:00:47]} Ra8 {[%emt 0:02:22]} 24. Ke3 {[%emt 0:02:51]} Kf7 {[%emt 0:02:07]} 25. Kd4 {[%emt 0:01:41]} Ke7 $16 {[%emt 0:01:20]} 26. cxd5 {[%emt 0:06:33]} exd5 {[%emt 0:01:36]} 27. Rc5 {[%emt 0:00:47]} Ke6 {[%emt 0:01:26]} 28. Ra5 {[%emt 0:00:16]} Bc8 {[%emt 0:00:08]} 29. Rc1 {[%emt 0:00:36]} g6 {[%emt 0:03:53]} 30. h3 {[%emt 0:00:19]} Rab8 {[%emt 0:01:46]} 31. g4 {[%emt 0:00:26]} Kf7 {[%emt 0:04:28]} 32. Rac5 {[%emt 0:01:49]} Bd7 {[%emt 0:01:22]} 33. gxf5 {[%emt 0:00:23]} gxf5 {[%emt 0:00:27]} 34. Rg1 {[%emt 0:00:28]} h6 {[%emt 0:00:24]} 35. Ra5 {[%emt 0:00:23]} Bc8 {[%emt 0:03:05]} 36. Kc5 {[%emt 0:00:16]} Bd7 {[%emt 0:02:21]} 37. Bxa6 {[%emt 0:00:31]} Be6 {[%emt 0:00:49]} 38. Be2 {[%emt 0:00:11]} 1-0